bitfinex-derivatives/quotes_BNBF0:USTF0_20250316
["timestamp","ask_amount","ask_price","bid_price","bid_amount"]
[1742127010356,0.33410176,598.62,597.49,0.982]
[1742127014662,0.33410176,598.62,597.5,1.042]
[1742127022167,2.48617716,598.52,597.5,1.042]
[1742127022367,0.33416875,598.5,597.5,1.042]
[1742127026169,0.33416875,598.5,597.51,1.155]
[1742127032974,2.48617716,598.43,597.51,1.155]
[1742127033273,0.33421901,598.41,597.51,1.155]
[1742127034771,2.48617716,598.28,597.51,1.155]
[1742127034970,0.33429722,598.27,597.51,1.155]
[1742127038378,2.48617716,598.19,597.51,1.155]
[1742127038578,0.33434752,598.18,597.51,1.155]
[1742127041082,2.48617716,598.1,597.51,1.155]
[1742127041284,0.33439783,598.09,597.51,1.155]
[1742127044286,0.33439783,598.09,596.35,0.29133529]
[1742127044590,0.33439783,598.09,596.36,0.30784011]
[1742127044889,2.48617716,598.07,596.36,0.30784011]
[1742127045086,0.33442019,598.05,596.23,0.29150611]
[1742127045388,0.33442019,598.05,596.24,0.30784011]
[1742127045883,0.33442019,598.05,596.25,0.30784011]
[1742127046089,0.33442019,598.05,596.26,0.30784011]
[1742127046283,0.33442019,598.05,596.27,0.33541851]
[1742127046483,0.33442019,598.05,596.28,0.30784011]
[1742127046684,0.33442019,598.05,596.28,0.643253]
[1742127046890,0.33442019,598.05,596.29,0.30784011]
[1742127047285,2.48617716,597.75,596.29,1.42584011]
[1742127047488,0.33459923,597.73,596.3,0.30784011]
[1742127048391,0.33459923,597.73,596.3,1.17084011]
[1742127048588,0.33459923,597.73,596.31,0.30784011]
[1742127049090,0.33459923,597.73,596.3,0.863]
[1742127051486,0.33459923,597.73,596.31,0.30796991]
[1742127051688,0.33459923,597.73,596.3,0.863]
[1742127051888,0.709,597.72,596.3,0.863]
[1742127052086,0.33461602,597.7,596.3,0.863]
[1742127052885,0.33461602,597.7,596.31,0.30796782]
[1742127053087,0.33461602,597.7,596.3,0.863]
[1742127054192,0.33461602,597.7,596.31,0.30796706]
[1742127054741,0.33461602,597.7,596.3,0.863]
[1742127055488,0.33461602,597.7,596.31,0.30797137]
[1742127056594,0.33461602,597.7,597.17,1.20526723]
[1742127056791,0.33461602,597.7,596.3,0.863]
[1742127062898,0.33461602,597.7,596.31,1.20325284]
[1742127063298,0.33461602,597.7,596.32,1.20325284]
[1742127063703,0.33461602,597.7,596.3,0.863]
[1742127064495,0.33461602,597.7,596.31,1.20436627]
[1742127064700,0.33461602,597.7,596.32,1.20436627]
[1742127064899,0.33461602,597.7,596.3,0.863]
[1742127065498,0.33461602,597.7,596.31,1.20509612]
[1742127066204,0.33461602,597.7,596.32,1.20509612]
[1742127066607,0.33461602,597.7,596.33,1.20509612]
[1742127067206,0.33461602,597.7,596.31,1.20509612]
[1742127067407,0.33461602,597.7,596.34,0.84]
[1742127070910,0.29170037,597.69,596.34,0.84]
[1742127071107,0.33463282,597.67,596.34,0.84]
[1742127072808,0.29173094,597.66,596.34,0.84]
[1742127073106,0.33464962,597.64,596.34,0.84]
[1742127077805,0.33464962,597.64,596.35,0.852]
[1742127081116,2.82082678,597.64,596.35,0.852]
[1742127082413,0.71,597.63,596.35,0.852]
[1742127082613,0.33466642,597.61,596.35,0.852]
[1742127092720,0.33466642,597.61,596.34,0.84]
[1742127093521,0.33466642,597.61,596.3,0.863]
[1742127095220,0.33466642,597.61,596.3,1.913]
[1742127097524,0.33466642,597.61,596.3,2.701]
[1742127115738,0.71,597.6,596.3,2.701]
[1742127115943,0.33468322,597.58,596.3,2.701]
[1742127128661,2.48617716,597.54,596.3,2.701]
[1742127129055,0.71,597.53,596.3,2.701]
[1742127129259,0.33471682,597.52,596.3,2.701]
[1742127130660,2.48617716,597.49,596.3,2.701]
[1742127130857,0.33474484,597.47,596.3,2.701]
[1742127144670,0.711,597.46,596.3,2.701]
[1742127144873,0.33476164,597.44,596.3,2.701]
[1742127166599,0.33476164,597.44,596.3,1.838]
[1742127168098,0.33476164,597.44,596.3,1.05]
[1742127168501,0.33476164,597.44,595.95,0.29164414]
[1742127168700,0.33476164,597.44,595.96,0.64361092]
[1742127168894,0.33476164,597.44,595.97,0.30801793]
[1742127169097,0.33476164,597.44,595.96,0.33559299]
[1742127169305,0.33476164,597.44,595.97,0.30803616]
[1742127170099,0.33476164,597.44,595.96,0.33559299]
[1742127191714,0.33476164,597.44,595.78,0.923]
[1742127191916,0.33476164,597.44,595.79,0.30816352]
[1742127192114,0.33476164,597.44,595.78,0.923]
[1742127192416,0.33476164,597.44,595.79,0.30816352]
[1742127194817,0.33476164,597.44,595.8,0.33568311]
[1742127195018,0.33476164,597.44,595.81,0.30816352]
[1742127195913,0.33476164,597.44,595.8,0.33568311]
[1742127196217,0.33476164,597.44,595.81,0.30803805]
[1742127196420,0.33476164,597.44,595.82,0.33567184]
[1742127196620,0.33476164,597.44,595.83,0.30803805]
[1742127196918,0.33476164,597.44,595.84,0.33566058]
[1742127197118,0.33476164,597.44,595.85,0.30803805]
[1742127197318,0.33476164,597.44,595.86,0.33564931]
[1742127197517,0.33476164,597.44,595.87,0.30803805]
[1742127197919,0.33476164,597.44,595.88,0.30791179]
[1742127198119,0.33476164,597.44,595.87,0.30791179]
[1742127198419,0.33476164,597.44,595.88,0.30791179]
[1742127198620,0.33476164,597.44,595.89,0.30791179]
[1742127198814,0.33476164,597.44,595.9,0.30791179]
[1742127199016,0.33476164,597.44,595.91,0.30791179]
[1742127199219,0.33476164,597.44,595.92,0.30791179]
[1742127199416,0.33476164,597.44,595.93,0.30791179]
[1742127199621,0.33476164,597.44,595.94,0.30791179]
[1742127199921,0.33476164,597.44,595.95,0.30791179]
[1742127200114,0.33476164,597.44,595.96,0.30791179]
[1742127200319,0.33476164,597.44,595.98,0.33558173]
[1742127200621,0.33476164,597.44,595.99,0.30791179]
[1742127200821,0.33476164,597.44,596.0,0.30791179]
[1742127201121,0.33476164,597.44,595.98,0.33558173]
[1742127202323,0.33476164,597.44,595.99,0.30785232]
[1742127202619,0.33476164,597.44,596.01,0.33556483]
[1742127202921,0.33476164,597.44,596.02,0.30785675]
[1742127203123,0.33476164,597.44,596.04,0.33554794]
[1742127203323,0.33476164,597.44,596.05,0.30785675]
[1742127203523,0.33476164,597.44,596.07,0.33553106]
[1742127204018,0.33476164,597.44,596.08,0.30785244]
[1742127204420,0.33476164,597.44,596.1,0.33551417]
[1742127204621,0.33476164,597.44,596.11,0.30785244]
[1742127204816,0.33476164,597.44,596.12,0.64335535]
[1742127205017,0.33476164,597.44,596.13,0.33549729]
[1742127205222,0.33476164,597.44,596.14,0.30793815]
[1742127205725,0.33476164,597.44,596.13,0.33549729]
[1742127208824,0.33476164,597.44,596.14,0.30795302]
[1742127210520,0.33476164,597.44,596.15,0.30794637]
[1742127210722,0.33476164,597.44,596.16,0.64342677]
[1742127210919,0.33476164,597.44,596.17,0.30794637]
[1742127211122,0.33476164,597.44,596.18,0.33546915]
[1742127211320,0.33476164,597.44,596.19,0.30794637]
[1742127211526,0.33476164,597.44,596.2,0.3354579]
[1742127211826,0.33476164,597.44,596.21,0.30794637]
[1742127212025,0.33476164,597.44,596.22,0.33544664]
[1742127212525,0.33476164,597.44,596.23,0.30788832]
[1742127212726,0.33476164,597.44,596.24,0.33543539]
[1742127212921,0.33476164,597.44,596.25,0.30788832]
[1742127213225,0.33476164,597.44,596.26,0.33542414]
[1742127213424,0.33476164,597.44,596.27,0.30788832]
[1742127213624,0.33476164,597.44,596.28,0.33541289]
[1742127213822,0.33476164,597.44,596.29,0.30788832]
[1742127215928,0.33476164,597.44,596.3,0.33540164]
[1742127216122,0.33476164,597.44,596.31,0.30788832]
[1742127216321,0.33476164,597.44,596.32,0.33539039]
[1742127216523,0.33476164,597.44,596.33,0.30788832]
[1742127216726,0.33476164,597.44,596.34,0.33537914]
[1742127216925,0.33476164,597.44,596.35,0.30788832]
[1742127217227,0.33476164,597.44,596.35,0.64326184]
[1742127217428,0.33476164,597.44,596.36,0.30788832]
[1742127219624,0.33476164,597.44,596.37,0.64316945]
[1742127219826,0.33476164,597.44,596.38,0.64316383]
[1742127220027,0.33476164,597.44,596.39,0.30780718]
[1742127220329,0.33476164,597.44,596.4,0.3353454]
[1742127220525,0.33476164,597.44,596.41,0.30780718]
[1742127221231,0.33476164,597.44,596.41,0.33533978]
[1742127221432,0.33476164,597.44,596.42,0.30779635]
[1742127223429,0.33476164,597.44,596.43,0.30777663]
[1742127223730,0.33476164,597.44,596.44,0.30777663]
[1742127223934,0.33476164,597.44,596.45,0.30777663]
[1742127224134,0.33476164,597.44,596.42,0.30777663]
[1742127224331,0.33476164,597.44,596.43,0.30777663]
[1742127224527,0.33476164,597.44,596.42,0.30777663]
[1742127224728,0.33476164,597.44,596.43,0.30777663]
[1742127225033,0.33476164,597.44,596.44,0.30777663]
[1742127225428,0.33476164,597.44,596.42,0.30777663]
[1742127225633,0.33476164,597.44,596.43,0.30777663]
[1742127225833,0.33476164,597.44,596.42,0.30777663]
[1742127226034,0.33476164,597.44,596.43,0.30777663]
[1742127226334,0.33476164,597.44,596.44,0.30777663]
[1742127226534,0.33476164,597.44,596.45,0.30777663]
[1742127226735,0.33476164,597.44,596.42,0.30777663]
[1742127226933,0.33476164,597.44,596.46,0.30777663]
[1742127227129,0.33476164,597.44,596.47,0.30777663]
[1742127227329,0.33476164,597.44,596.42,0.30777663]
[1742127227532,0.33476164,597.44,596.43,0.30777663]
[1742127227735,0.33476164,597.44,596.42,0.30777663]
[1742127227935,0.33476164,597.44,596.43,0.30777663]
[1742127228135,0.33476164,597.44,596.42,0.30777663]
[1742127228331,0.33476164,597.44,596.44,0.30777663]
[1742127228531,0.33476164,597.44,596.45,0.30777663]
[1742127228729,0.33476164,597.44,596.42,0.30777663]
[1742127228931,0.33476164,597.44,596.43,0.30777663]
[1742127229133,0.33476164,597.44,596.42,0.30777663]
[1742127229331,0.33476164,597.44,596.41,0.33533978]
[1742127229332,0.33476164,597.44,596.43,0.30777663]
[1742127229535,0.33476164,597.44,596.42,0.30777663]
[1742127229734,0.33476164,597.44,596.43,0.30777663]
[1742127229932,0.33476164,597.44,596.42,0.30777663]
[1742127232740,0.33476164,597.44,596.43,0.30782715]
[1742127233042,0.33476164,597.44,596.44,0.30782715]
[1742127233242,0.33476164,597.44,596.42,0.30782715]
[1742127234550,0.33476164,597.44,596.41,0.33533978]
[1742127234751,0.33476164,597.44,596.42,0.30782615]
[1742127238151,0.33476164,597.44,596.43,0.30785296]
[1742127238345,0.33476164,597.44,596.44,0.30785296]
[1742127238548,0.33476164,597.44,596.45,0.30785296]
[1742127238745,0.33476164,597.44,596.42,0.30785296]
[1742127238948,0.33476164,597.44,596.43,0.30785296]
[1742127239149,0.33476164,597.44,596.42,0.30785296]
[1742127239352,0.33476164,597.44,596.43,0.30785296]
[1742127239546,0.33476164,597.44,596.42,0.30785296]
[1742127239748,0.33476164,597.44,596.43,0.30785296]
[1742127240051,0.33476164,597.44,596.44,0.30785296]
[1742127240252,0.33476164,597.44,596.42,0.30785296]
[1742127240552,0.33476164,597.44,596.41,0.33533978]
[1742127240754,0.33476164,597.44,596.42,0.30782769]
[1742127241150,0.33476164,597.44,596.41,0.33533978]
[1742127242051,0.33476164,597.44,596.42,0.38122249]
[1742127242353,0.33476164,597.44,596.43,2.62719629]
[1742127242554,0.33476164,597.44,596.44,1.41758695]
[1742127242755,0.33476164,597.44,596.45,1.41758695]
[1742127242955,0.33476164,597.44,596.46,1.41758695]
[1742127243152,0.33476164,597.44,596.47,2.62719629]
[1742127243354,0.33476164,597.44,596.48,1.41758695]
[1742127243658,0.33476164,597.44,596.49,2.2459738]
[1742127243954,0.33476164,597.44,596.49,1.20960934]
[1742127244154,0.33476164,597.44,596.5,1.20960934]
[1742127244552,0.33476164,597.44,596.42,1.20960934]
[1742127244756,0.33476164,597.44,596.43,1.72622802]
[1742127244956,0.33476164,597.44,596.44,1.7262277]
[1742127245256,0.33476164,597.44,596.45,1.7262277]
[1742127245455,0.33476164,597.44,596.46,1.7262277]
[1742127245649,0.33476164,597.44,596.47,1.7262277]
[1742127245849,0.33476164,597.44,596.48,1.4183754]
[1742127246048,0.33476164,597.44,596.49,1.4186896]
[1742127246253,0.33476164,597.44,596.5,2.62829894]
[1742127246453,0.33476164,597.44,596.51,1.4186896]
[1742127246655,0.33476164,597.44,596.52,1.4186896]
[1742127246850,0.33476164,597.44,596.53,2.62829894]
[1742127247054,0.33476164,597.44,596.54,1.4186896]
[1742127247252,0.33476164,597.44,596.55,1.4186896]
[1742127247456,0.33476164,597.44,596.56,2.62829894]
[1742127247650,0.33476164,597.44,596.57,1.4186896]
[1742127247851,0.33476164,597.44,596.58,1.4186896]
[1742127248153,0.33476164,597.44,596.59,2.24773224]
[1742127248457,0.33476164,597.44,596.6,1.0381229]
[1742127248654,0.33476164,597.44,596.6,2.24773224]
[1742127248957,0.33476164,597.44,596.6,1.20960934]
[1742127249156,0.33476164,597.44,596.61,1.03860826]
[1742127249360,0.33476164,597.44,596.62,1.20960934]
[1742127250057,0.33476164,597.44,596.42,1.20960934]
[1742127250257,0.33476164,597.44,596.43,1.42134904]
[1742127250459,0.33476164,597.44,596.44,1.42134904]
[1742127250656,0.33476164,597.44,596.42,1.20960934]
[1742127250657,0.33476164,597.44,596.45,1.42134904]
[1742127250850,0.33476164,597.44,596.42,1.20960934]
[1742127250851,0.33476164,597.44,596.46,1.42134904]
[1742127251056,0.33476164,597.44,596.47,1.42134904]
[1742127251257,0.33476164,597.44,596.48,1.42134904]
[1742127251452,0.33476164,597.44,596.49,1.42134904]
[1742127251653,0.33476164,597.44,596.5,1.42134904]
[1742127251851,0.33476164,597.44,596.51,1.42134904]
[1742127252055,0.33476164,597.44,596.52,1.42134904]
[1742127252255,0.33476164,597.44,596.53,1.42270011]
[1742127252455,0.33476164,597.44,596.54,1.42270011]
[1742127252757,0.33476164,597.44,596.55,2.63230945]
[1742127252957,0.33476164,597.44,596.56,1.42270011]
[1742127253158,0.33476164,597.44,596.57,1.42270011]
[1742127253459,0.33476164,597.44,596.58,1.42270011]
[1742127253659,0.33476164,597.44,596.59,1.42270011]
[1742127253859,0.33476164,597.44,596.6,1.42270011]
[1742127254157,0.33476164,597.44,596.58,1.20960934]
[1742127254158,0.33476164,597.44,596.61,2.63230945]
[1742127254358,0.33476164,597.44,596.62,1.42270011]
[1742127254561,0.33476164,597.44,596.63,1.42270011]
[1742127254860,0.33476164,597.44,596.64,1.42270011]
[1742127255059,0.33476164,597.44,596.65,1.42270011]
[1742127255259,0.33476164,597.44,596.66,1.42270011]
[1742127255452,0.33476164,597.44,596.67,2.63230945]
[1742127255656,0.33476164,597.44,596.68,1.04046092]
[1742127256053,0.33476164,597.44,596.69,1.20960934]
[1742127256256,0.33476164,597.44,596.7,1.04329164]
[1742127256558,0.33476164,597.44,596.71,1.04329164]
[1742127256754,0.33476164,597.44,596.72,1.42712281]
[1742127256959,0.33476164,597.44,596.73,1.42712281]
[1742127257159,0.33476164,597.44,596.74,1.427061]
[1742127257359,0.33476164,597.44,596.75,1.427061]
[1742127257557,0.698,597.93,596.76,1.427061]
[1742127257862,0.3344929,597.92,596.77,1.427061]
[1742127258059,0.3344929,597.92,596.78,1.427061]
[1742127258363,0.3344929,597.92,596.79,1.427061]
[1742127258659,0.3344929,597.92,596.8,1.427061]
[1742127258855,0.3344929,597.92,596.81,1.427061]
[1742127259061,0.3344929,597.92,596.82,1.427061]
[1742127259256,0.3344929,597.92,596.83,1.427061]
[1742127259459,0.3344929,597.92,596.84,1.427061]
[1742127259654,0.3344929,597.92,596.85,1.427061]
[1742127259854,0.3344929,597.92,596.86,1.427061]
[1742127260161,0.3344929,597.92,596.87,1.427061]
[1742127260359,0.3344929,597.92,596.88,1.427061]
[1742127260559,0.3344929,597.92,596.89,1.427061]
[1742127260760,0.3344929,597.92,596.9,2.63667034]
[1742127260963,0.3344929,597.92,596.91,1.427061]
[1742127261255,0.3344929,597.92,596.92,2.63667034]
[1742127261456,0.3344929,597.92,596.93,1.427061]
[1742127261660,0.3344929,597.92,596.94,2.63667034]
[1742127261859,0.3344929,597.92,596.95,1.427061]
[1742127262055,0.3344929,597.92,596.96,1.04329164]
[1742127262262,0.3344929,597.92,596.97,1.04329164]
[1742127262460,0.3344929,597.92,596.98,1.04329164]
[1742127262661,0.3344929,597.92,596.94,1.20960934]
[1742127262861,0.3344929,597.92,596.99,1.20960934]
[1742127263264,0.3344929,597.92,596.6,1.20960934]
[1742127263562,0.3344929,597.92,596.61,2.06699206]
[1742127263763,0.3344929,597.92,596.62,2.06698644]
[1742127263958,0.3344929,597.92,596.63,1.7317647]
[1742127264164,0.3344929,597.92,596.64,1.7317647]
[1742127264363,0.3344929,597.92,596.65,1.7317647]
[1742127264566,0.3344929,597.92,596.66,1.7317647]
[1742127264764,0.3344929,597.92,596.67,2.06695835]
[1742127265066,0.3344929,597.92,596.68,1.73171816]
[1742127265266,0.3344929,597.92,596.69,2.9413275]
[1742127265566,0.3344929,597.92,596.7,1.73171816]
[1742127265766,0.3344929,597.92,596.71,2.9413275]
[1742127265962,0.3344929,597.92,596.72,1.73171816]
[1742127266162,0.3344929,597.92,596.73,1.73171816]
[1742127266360,0.3344929,597.92,596.74,1.73171816]
[1742127266558,0.3344929,597.92,596.75,1.73171816]
[1742127266762,0.3344929,597.92,596.76,1.42407922]
[1742127266960,0.3344929,597.92,596.75,0.30763894]
[1742127266961,0.3344929,597.92,596.77,1.73171816]
[1742127267164,0.3344929,597.92,596.78,2.9413275]
[1742127267361,0.3344929,597.92,596.79,1.75920547]
[1742127267566,0.699,597.91,596.8,1.73171816]
[1742127267761,0.699,597.91,596.81,2.06683318]
[1742127268067,0.699,597.91,596.82,2.06682757]
[1742127268268,0.699,597.91,596.83,2.06682195]
[1742127268563,0.699,597.91,596.81,1.20960934]
[1742127268564,0.699,597.91,596.84,2.06477966]
[1742127268868,0.699,597.91,596.85,3.27432538]
[1742127269062,0.699,597.91,596.86,2.06471043]
[1742127269265,0.699,597.91,596.87,3.27431416]
[1742127269463,0.699,597.91,596.88,2.0646992]
[1742127269666,0.699,597.91,596.89,3.27430293]
[1742127269868,0.699,597.91,596.9,2.06468797]
[1742127270064,0.699,597.91,596.91,2.06468236]
[1742127270370,0.699,597.91,596.92,1.75709581]
[1742127270570,0.699,597.91,596.93,1.7570902]
[1742127270769,0.699,597.91,596.94,1.42204254]
[1742127270966,0.699,597.91,596.95,1.42204254]
[1742127271271,0.699,597.91,596.96,1.42204254]
[1742127271472,0.699,597.91,596.97,1.42204254]
[1742127271671,0.699,597.91,596.98,1.42204254]
[1742127271872,0.699,597.91,596.99,1.42204254]
[1742127272172,0.699,597.91,597.0,1.42204254]
[1742127272370,0.699,597.91,597.01,2.63165188]
[1742127272566,0.699,597.91,597.02,1.42204254]
[1742127272766,0.699,597.91,597.03,1.42204254]
[1742127272972,0.699,597.91,597.04,1.42191732]
[1742127273171,0.699,597.91,597.05,1.42188205]
[1742127273472,0.699,597.91,597.06,1.42188205]
[1742127273673,0.699,597.91,597.07,2.63149139]
[1742127273874,0.699,597.91,597.08,1.42188487]
[1742127274075,0.699,597.91,597.09,1.42188487]
[1742127274270,0.699,597.91,597.07,1.20960934]
[1742127274271,0.699,597.91,597.1,2.63149421]
[1742127274475,0.699,597.91,597.11,1.03909294]
[1742127274673,0.699,597.91,597.12,1.42155523]
[1742127274876,0.699,597.91,597.13,1.42155523]
[1742127275074,0.699,597.91,597.14,1.42155523]
[1742127275271,0.699,597.91,597.15,1.42155523]
[1742127275477,0.699,597.91,597.16,1.42155523]
[1742127275675,0.699,597.91,597.17,1.42155523]
[1742127275876,0.699,597.91,597.18,1.42155523]
[1742127276071,0.699,597.91,597.19,2.63116457]
[1742127276271,0.699,597.91,597.2,1.03647924]
[1742127276472,0.699,597.91,597.19,1.20960934]
[1742127276778,0.699,597.91,597.2,0.3821425]
[1742127277175,0.699,597.91,597.21,1.03638577]
[1742127277477,0.699,597.91,597.19,1.20960934]
[1742127278173,0.699,597.91,597.2,1.41776767]
[1742127278676,0.699,597.91,597.21,1.41763013]
[1742127278878,0.699,597.91,597.22,1.03588984]
[1742127279178,0.699,597.91,597.22,1.20960934]
[1742127279678,0.699,597.91,596.93,0.62627202]
[1742127279879,0.699,597.91,596.94,2.96031049]
[1742127280179,0.699,597.91,596.95,1.7520502]
[1742127280379,0.699,597.91,596.96,1.75204459]
[1742127280582,0.699,597.91,596.97,1.41701377]
[1742127280782,0.699,597.91,596.98,1.41701377]
[1742127280974,0.699,597.91,596.99,1.41701377]
[1742127281176,0.699,597.91,597.0,2.62526845]
[1742127281481,0.699,597.91,597.01,1.41701377]
[1742127281680,0.699,597.91,597.0,1.20825468]
[1742127281681,0.699,597.91,597.02,1.41701377]
[1742127281879,0.699,597.91,597.03,1.41701377]
[1742127282076,0.699,597.91,597.04,1.41701377]
[1742127282278,0.699,597.91,597.05,1.41701377]
[1742127282479,0.699,597.91,597.06,1.41701377]
[1742127282675,0.699,597.91,597.07,1.41701377]
[1742127282875,0.699,597.91,597.08,1.03418092]
[1742127283081,0.699,597.91,597.07,1.20825468]
[1742127283482,0.699,597.91,597.08,2.62308347]
[1742127283782,2.48617716,599.41,597.09,2.62306082]
[1742127283981,0.33372267,599.3,597.09,1.20825468]
[1742127284180,0.33372267,599.3,597.1,1.028]
[1742127284376,0.33372267,599.3,597.1,2.23625468]
[1742127285082,0.33372267,599.3,597.11,1.20825468]
[1742127285580,0.33372267,599.3,597.1,1.028]
[1742127285581,0.33372267,599.3,597.12,1.20825468]
[1742127286382,0.698,599.29,597.1,1.028]
[1742127286579,0.33378394,599.19,597.1,1.028]
[1742127288987,0.29112082,599.18,597.1,1.028]
[1742127289288,0.33384522,599.08,597.1,1.028]
[1742127290585,2.48617716,598.85,597.1,1.028]
[1742127290778,0.3339846,598.83,597.1,1.028]
[1742127290979,0.3339846,598.83,597.11,0.908]
[1742127292082,0.29118537,598.82,597.11,0.908]
[1742127292286,0.33400133,598.8,597.11,0.908]
[1742127292579,2.48617716,598.78,597.11,0.908]
[1742127292784,0.33402364,598.76,597.11,0.908]
[1742127294686,2.48617716,598.7,597.11,0.908]
[1742127294984,0.33406828,598.68,597.11,0.908]
[1742127295984,2.48617716,598.63,597.11,0.908]
[1742127296184,0.33410734,598.61,597.11,0.908]
[1742127299681,2.48617716,598.5,597.11,0.908]
[1742127299986,0.33417992,598.48,597.11,0.908]
[1742127301687,2.48617716,598.21,597.11,0.908]
[1742127301884,0.33434193,598.19,597.11,0.908]
[1742127303089,0.33434193,598.19,597.1,1.028]
[1742127305291,0.33434193,598.19,596.96,0.33503082]
[1742127306091,0.33434193,598.19,596.97,1.185]
[1742127306286,1.03334193,598.19,596.97,1.185]
[1742127306489,1.03334193,598.19,596.96,0.33503082]
[1742127306891,1.03334193,598.19,596.97,1.20895098]
[1742127307391,1.03334193,598.19,596.98,1.20895098]
[1742127308286,1.03334193,598.19,596.97,1.20895098]
[1742127308591,1.03334193,598.19,596.98,1.96695098]
[1742127308891,1.03334193,598.19,596.98,0.758]
[1742127309089,1.03334193,598.19,596.99,0.935]
[1742127310286,1.03334193,598.19,597.0,2.24562575]
[1742127310492,1.03334193,598.19,597.0,1.2093422]
[1742127310685,1.03334193,598.19,597.01,1.2093422]
[1742127310891,1.03334193,598.19,597.02,1.03586081]
[1742127311091,1.03334193,598.19,597.01,1.2093422]
[1742127311491,1.03334193,598.19,597.03,1.2093422]
[1742127311993,1.03334193,598.19,597.0,1.2093422]
[1742127312294,1.03334193,598.19,597.01,1.03690303]
[1742127312593,1.03334193,598.19,597.0,1.2093422]
[1742127312793,1.03334193,598.19,597.01,1.03681272]
[1742127313094,1.03334193,598.19,597.02,1.2093422]
[1742127313794,1.03334193,598.19,597.0,1.2093422]
[1742127314194,1.03334193,598.19,597.01,1.03792797]
[1742127314397,1.03334193,598.19,597.02,1.03792797]
[1742127314597,1.03334193,598.19,597.03,1.2093422]
[1742127315292,1.03334193,598.19,597.0,1.2093422]
[1742127315488,1.03334193,598.19,597.01,1.03852458]
[1742127315693,1.03334193,598.19,597.02,1.03852458]
[1742127315894,1.03334193,598.19,597.03,1.03852458]
[1742127316091,1.03334193,598.19,597.04,1.03852458]
[1742127316293,1.03334193,598.19,597.05,1.03852458]
[1742127316492,1.03334193,598.19,597.03,1.2093422]
[1742127316795,1.03334193,598.19,597.04,1.03930531]
[1742127316992,1.03334193,598.19,597.05,1.03930531]
[1742127317197,1.03334193,598.19,597.03,1.116]
[1742127317395,1.03334193,598.19,597.06,1.2093422]
[1742127317798,1.03334193,598.19,597.03,1.116]
[1742127319301,1.03334193,598.19,597.04,1.04100482]
[1742127319505,1.03334193,598.19,597.05,1.0409643]
[1742127319806,1.03334193,598.19,597.06,1.04093965]
[1742127320006,1.03334193,598.19,597.05,1.21480806]
[1742127320206,1.03334193,598.19,597.06,1.21480806]
[1742127320907,1.03334193,598.19,597.04,1.21480806]
[1742127321107,1.03334193,598.19,597.05,1.04101518]
[1742127321306,1.03334193,598.19,597.04,1.21480806]
[1742127321307,1.03334193,598.19,597.06,1.04101518]
[1742127321507,1.03334193,598.19,597.04,1.21480806]
[1742127321702,1.03334193,598.19,597.03,1.116]
[1742127321703,1.03334193,598.19,597.07,1.21480806]
[1742127322208,1.03334193,598.19,597.08,1.04063588]
[1742127322409,1.03334193,598.19,597.09,1.04058881]
[1742127322708,1.03334193,598.19,597.1,1.04048888]
[1742127322909,2.48617716,598.16,597.11,1.04048888]
[1742127323108,0.33436428,598.15,597.11,1.21425452]
[1742127323302,0.33436428,598.15,597.12,1.04071257]
[1742127323504,0.33436428,598.15,597.11,1.21425452]
[1742127323705,0.33436428,598.15,597.13,1.21425452]
[1742127324501,0.33436428,598.15,597.04,1.21425452]
[1742127324703,0.33436428,598.15,597.05,1.04100988]
[1742127324905,0.33436428,598.15,597.06,1.04100988]
[1742127325107,0.33436428,598.15,597.06,1.21425452]
[1742127325705,0.33436428,598.15,597.04,1.21425452]
[1742127326007,0.33436428,598.15,597.05,1.04092422]
[1742127326210,0.33436428,598.15,597.06,1.04092422]
[1742127326508,0.33436428,598.15,597.07,1.04092422]
[1742127326708,0.699,598.14,597.06,0.846]
[1742127326908,0.699,598.14,597.07,1.04100068]
[1742127327104,0.699,598.14,597.06,0.846]
[1742127327302,0.699,598.14,597.07,1.04113512]
[1742127327303,0.33437547,598.13,597.07,1.04113512]
[1742127327503,0.33437547,598.13,597.07,1.21485902]
[1742127327704,0.33437547,598.13,597.08,1.04133608]
[1742127327906,0.33437547,598.13,597.09,2.2561951]
[1742127328107,0.33437547,598.13,597.1,1.04133608]
[1742127328406,0.33437547,598.13,597.09,1.21485902]
[1742127328611,0.33437547,598.13,597.1,1.04144244]
[1742127328811,0.33437547,598.13,597.06,0.846]
[1742127329009,0.33437547,598.13,597.07,2.64128351]
[1742127329205,0.33437547,598.13,597.08,1.42571384]
[1742127329412,0.33437547,598.13,597.09,1.04161552]
[1742127329609,0.33437547,598.13,597.1,1.04161552]
[1742127330207,0.33437547,598.13,597.11,1.21559493]
[1742127330413,0.33437547,598.13,597.12,1.04161552]